bitfinex/quotes_SOLUSD_20240614
["timestamp","ask_amount","ask_price","bid_price","bid_amount"]
[1718384279360,26.1008,141.76,141.66,100.0]
[1718384279574,2.6102,141.76,141.66,100.0]
[1718384279764,2.6102,141.75,141.66,100.0]
[1718384280275,13.0512,141.75,141.65,21.18]
[1718384280590,2.6104,141.74,141.66,8.47420257]
[1718384280892,5.2209,141.74,141.66,8.47420257]
[1718384281101,13.0503,141.76,141.66,8.47420257]
[1718384281292,2.6102,141.75,141.66,8.47420257]
[1718384281474,2.6102,141.75,141.65,21.18]
[1718384281685,15.4812,141.79,141.66,121.35]
[1718384282028,20.8777,141.78,141.67,0.17]
[1718384282219,2.61,141.76,141.67,0.17]
[1718384282508,2.61,141.76,141.68,0.17]
[1718384282664,2.6104,141.74,141.68,0.51]
[1718384282863,15.662,141.75,141.69,0.17]
[1718384283107,5.2208,141.74,141.69,0.17]
[1718384283397,2.6103,141.75,141.69,0.17]
[1718384283617,7.8302,141.76,141.69,0.17]
[1718384283767,2.6102,141.75,141.69,0.17]
[1718384283971,23.4922,141.75,141.69,0.17]
[1718384284170,7.8309,141.75,141.69,0.17]
[1718384284373,2.6101,141.76,141.69,0.17]
[1718384284596,2.6101,141.76,141.7,0.17]
[1718384284776,2.6101,141.76,141.7,0.51]
[1718384284991,2.61,141.76,141.7,0.51]
[1718384285177,7.8301,141.76,141.7,0.51]
[1718384285391,7.8301,141.76,141.7,0.34]
[1718384285392,7.8307,141.75,141.7,0.34]
[1718384286268,23.4923,141.75,141.7,0.34]
[1718384286506,7.8308,141.75,141.7,0.34]
[1718384286687,2.6101,141.76,141.7,0.34]
[1718384286867,2.6102,141.75,141.7,0.34]
[1718384287061,5.2205,141.75,141.7,0.34]
[1718384287301,2.6102,141.75,141.7,0.34]
[1718384287490,7.8306,141.75,141.7,0.34]
[1718384287679,23.4921,141.75,141.7,0.34]
[1718384288003,7.8304,141.76,141.7,0.34]
[1718384288380,23.4895,141.77,141.7,0.34]
[1718384288590,2.61,141.76,141.7,0.34]
[1718384288792,23.4906,141.76,141.7,0.34]
[1718384288993,7.8306,141.75,141.7,0.34]
[1718384289201,2.6102,141.75,141.7,0.34]
[1718384289383,7.8306,141.75,141.7,0.34]
[1718384289590,2.6104,141.74,141.7,0.34]
[1718384289821,26.1024,141.75,141.7,0.34]
[1718384290274,2.6102,141.75,141.7,0.34]
[1718384290472,7.8308,141.75,141.7,0.34]
[1718384290891,23.4916,141.76,141.7,0.34]
[1718384291096,2.6102,141.75,141.7,0.34]
[1718384291691,7.8307,141.75,141.7,0.34]
[1718384291910,2.6102,141.75,141.7,0.34]
[1718384292069,7.8304,141.76,141.7,0.34]
[1718384292272,15.4812,141.79,141.7,0.34]
[1718384292510,2.61,141.76,141.7,0.34]
[1718384292687,15.6603,141.76,141.7,0.34]
[1718384292876,2.6112,141.7,141.6,100.0]
[1718384293188,23.4995,141.71,141.62,6.38729782]
[1718384293381,2.6111,141.71,141.62,0.8514778]
[1718384293690,10.4427,141.73,141.62,0.8514778]
[1718384294005,7.8325,141.72,141.62,0.8514778]
[1718384294305,2.611,141.71,141.62,0.8514778]
[1718384294504,26.1089,141.72,141.62,0.8514778]
[1718384294803,15.6657,141.71,141.62,0.8514778]
[1718384295014,15.6657,141.71,141.63,0.34]
[1718384295182,7.8327,141.72,141.63,0.34]
[1718384295389,7.8327,141.72,141.64,0.17]
[1718384295390,26.108,141.72,141.64,0.17]
[1718384295595,2.6109,141.72,141.64,0.34]
[1718384295803,15.6648,141.72,141.66,0.17]
[1718384296115,23.497,141.72,141.66,0.34]
[1718384296325,2.611,141.71,141.66,0.34]
[1718384296600,2.6109,141.71,141.67,0.17]
[1718384296974,26.1079,141.72,141.67,0.17]
[1718384297394,22.2774,141.75,141.62,0.8514778]
[1718384297395,15.6692,141.68,141.62,0.8514778]
[1718384297587,7.8347,141.68,141.62,0.8514778]
[1718384297789,26.1143,141.69,141.62,0.8514778]
[1718384298093,2.6115,141.68,141.62,0.8514778]
[1718384298301,23.5028,141.69,141.62,0.8514778]
[1718384298302,7.8342,141.69,141.62,0.8514778]
[1718384298502,2.6114,141.69,141.62,0.8514778]
[1718384298717,7.8341,141.69,141.63,0.34]
[1718384299039,15.6681,141.69,141.63,0.34]
[1718384299178,26.114,141.69,141.63,0.34]
[1718384299390,2.6114,141.69,141.63,0.34]
[1718384299576,26.1123,141.7,141.63,0.34]
[1718384299894,7.8337,141.7,141.64,0.17]
[1718384300098,2.6113,141.7,141.64,0.17]
[1718384300294,18.2781,141.7,141.64,0.17]
[1718384300488,7.8342,141.69,141.64,0.17]
[1718384300689,2.6114,141.69,141.63,0.34]
[1718384300915,15.6681,141.69,141.63,0.34]
[1718384301212,26.1137,141.69,141.63,0.34]
[1718384301384,2.6114,141.69,141.63,0.34]
[1718384301715,7.8341,141.69,141.63,0.34]
[1718384302281,2.6113,141.69,141.63,0.34]
[1718384303120,2.6118,141.67,141.63,0.17]
[1718384303404,2.6119,141.66,141.62,0.8514778]
[1718384303887,23.5062,141.67,141.62,0.8514778]
[1718384304088,20.8945,141.67,141.62,0.8514778]
[1718384304289,7.8353,141.67,141.62,0.8514778]
[1718384304714,30.17,141.63,141.62,0.8514778]
[1718384304882,2.6126,141.62,141.5,128.246821]
[1718384305088,23.5142,141.62,141.5,149.426821]
[1718384305387,2.6129,141.61,141.5,126.99882625]
[1718384305615,26.1268,141.62,141.5,126.99882625]
[1718384305819,7.8381,141.62,141.5,126.99882625]
[1718384306189,15.733,141.67,141.55,100.0]
[1718384306492,15.733,141.67,141.58,0.17]
[1718384306689,30.17,141.64,141.58,0.51]
[1718384306993,7.8347,141.68,141.59,0.17]
[1718384307209,30.17,141.64,141.59,0.17]
[1718384307584,30.17,141.64,141.6,0.17]
[1718384307784,30.17,141.64,141.6,0.51]
[1718384307986,30.17,141.64,141.61,0.17]
[1718384309235,30.17,141.64,141.55,121.18]
[1718384310643,32.7822,141.64,141.56,0.51]
[1718384310847,100.0,141.69,141.57,0.17]
[1718384311035,2.6127,141.62,141.57,0.17]
[1718384311337,26.1252,141.63,141.57,0.17]
[1718384311628,7.8375,141.63,141.57,0.17]
[1718384311934,2.6123,141.64,141.57,0.17]
[1718384312616,7.8368,141.64,141.57,0.17]
[1718384312947,2.6124,141.63,141.57,0.17]
[1718384313332,7.8369,141.64,141.57,0.17]
[1718384313511,5.2246,141.64,141.57,0.17]
[1718384313711,2.6124,141.63,141.57,0.17]
[1718384314222,7.8372,141.63,141.57,0.17]
[1718384314441,2.6124,141.63,141.56,0.51]
[1718384314742,2.6126,141.62,141.52,21.18]
[1718384314911,15.6758,141.62,141.52,21.18]
[1718384315234,23.5137,141.62,141.52,21.18]
[1718384315443,15.6748,141.63,141.52,21.18]
[1718384315642,26.1245,141.63,141.52,21.18]
[1718384315950,2.6126,141.62,141.52,21.18]
[1718384316123,2.6125,141.63,141.53,121.18]
[1718384316489,5.225,141.63,141.54,0.17]
[1718384316614,7.8375,141.63,141.55,0.17]
[1718384316819,7.8375,141.63,141.55,0.51]
[1718384317016,15.6748,141.63,141.56,0.17]
[1718384317266,2.6126,141.62,141.56,0.17]
[1718384317740,26.1281,141.61,141.55,0.34]
[1718384318347,26.1281,141.61,141.51,121.18]
[1718384318548,7.8385,141.61,141.51,121.18]
[1718384318720,2.6128,141.61,141.51,121.18]
[1718384318920,7.8384,141.61,141.51,121.18]
[1718384319354,23.519,141.59,141.5,5.81882625]
[1718384319531,26.1323,141.59,141.47,101.22471069]
[1718384319726,7.8396,141.59,141.49,100.0]
[1718384319936,2.6133,141.59,141.49,100.0]
[1718384320117,7.8396,141.59,141.49,100.0]
[1718384320323,7.839,141.6,141.49,121.18]
[1718384320551,5.226,141.6,141.49,21.18]
[1718384320844,7.8407,141.57,141.47,101.22471069]
[1718384321051,2.6135,141.57,141.48,0.8514778]
[1718384321248,23.5222,141.57,141.48,0.8514778]
[1718384321458,2.6137,141.56,141.48,0.8514778]
[1718384321635,2.6136,141.57,141.48,0.8514778]
[1718384321966,2.6137,141.56,141.48,0.8514778]
[1718384322128,7.8419,141.55,141.48,0.8514778]
[1718384322548,26.1374,141.56,141.48,0.8514778]
[1718384322647,2.6137,141.57,141.48,0.8514778]
[1718384322824,2.6136,141.57,141.48,0.8514778]
[1718384323023,7.8406,141.57,141.48,0.8514778]
[1718384323747,5.2277,141.56,141.49,0.68]
[1718384323949,16.2585,141.59,141.48,0.8514778]
[1718384324285,26.1501,141.49,141.48,0.8514778]
[1718384324388,15.3375,141.57,141.48,0.8514778]
[1718384324779,30.17,141.51,141.48,0.8514778]
[1718384325099,15.3375,141.57,141.48,0.8514778]
[1718384325383,2.6143,141.53,141.48,0.8514778]
[1718384325700,13.0688,141.56,141.48,0.8514778]
[1718384325853,7.8414,141.56,141.48,0.8514778]
[1718384326063,5.2276,141.56,141.48,0.8514778]
[1718384326236,17.9511,141.57,141.48,22.0314778]
[1718384326431,15.3375,141.57,141.49,0.34]
[1718384326655,23.1782,141.57,141.5,0.34]
[1718384326861,2.6138,141.56,141.5,0.34]
[1718384327159,2.6142,141.54,141.5,0.34]
[1718384327342,2.6142,141.53,141.5,0.17]
[1718384327658,2.6142,141.54,141.49,0.34]
[1718384327860,26.1399,141.55,141.49,0.34]
[1718384328047,17.9511,141.57,141.49,0.34]
[1718384328536,15.3375,141.57,141.5,0.34]
[1718384328736,15.3375,141.57,141.51,0.34]
[1718384329039,23.1781,141.57,141.51,0.34]
[1718384329241,15.3375,141.57,141.51,0.34]
[1718384329451,17.951,141.57,141.51,0.34]
[1718384329643,15.3375,141.57,141.51,0.34]
[1718384329846,23.1781,141.57,141.51,0.34]
[1718384330058,2.6138,141.56,141.51,0.34]
[1718384330259,23.5206,141.58,141.52,0.34]
[1718384330442,2.6134,141.58,141.53,0.34]
[1718384330650,2.6132,141.59,141.53,0.34]
[1718384330856,22.218,141.61,141.53,0.34]
[1718384331094,22.6639,141.65,141.54,0.34]
[1718384331267,26.1252,141.63,141.55,0.34]
[1718384331568,2.6125,141.63,141.56,0.34]
[1718384331792,7.8379,141.62,141.56,0.34]
[1718384331975,2.6127,141.62,141.57,0.34]
[1718384332179,2.6124,141.63,141.57,0.34]
[1718384332571,15.6746,141.63,141.57,0.34]
[1718384332747,18.2887,141.62,141.57,0.34]
[1718384332967,15.6759,141.62,141.57,0.34]
[1718384333218,23.5138,141.62,141.57,0.34]
[1718384333376,7.8384,141.61,141.57,0.34]
[1718384333676,7.8373,141.63,141.57,0.34]
[1718384333855,7.8373,141.63,141.58,0.17]
[1718384334055,2.6125,141.63,141.57,0.34]
[1718384334375,30.17,141.64,141.57,0.34]
[1718384334559,2.613,141.6,141.57,0.34]
[1718384334758,2.613,141.6,141.48,10.8514778]
[1718384334759,22.6639,141.65,141.52,0.17]
[1718384334952,5.226,141.6,141.5,100.0]
[1718384335409,100.0,141.63,141.5,5.58819836]
[1718384335621,2.6137,141.56,141.48,10.9514778]
[1718384335905,2.6139,141.55,141.48,10.9514778]
[1718384336001,23.5241,141.56,141.48,10.9514778]
[1718384336284,2.6138,141.56,141.48,10.9514778]
[1718384336586,18.293,141.59,141.48,32.1314778]
[1718384336873,5.2261,141.6,141.49,121.18]
[1718384337083,5.2271,141.57,141.5,0.51]
[1718384337373,18.2951,141.57,141.51,0.17]
[1718384337631,7.8417,141.55,141.5,0.51]
[1718384337761,20.909,141.57,141.5,0.51]
[1718384337971,7.8409,141.57,141.51,0.17]
[1718384338360,2.6137,141.57,141.51,0.17]
[1718384338564,2.6133,141.59,141.51,0.17]
[1718384338772,122.6639,141.65,141.51,0.17]
[1718384338975,2.6135,141.57,141.51,0.17]
[1718384339155,26.1336,141.58,141.51,0.17]
[1718384339359,2.6137,141.56,141.51,0.17]
[1718384339686,2.6136,141.57,141.51,0.17]
[1718384339870,100.0,141.61,141.48,16.62660116]
[1718384340186,32.7842,141.54,141.48,16.62660116]
[1718384340520,9.0257,141.6,141.49,121.18]
[1718384340668,5.2264,141.59,141.49,121.18]
[1718384340852,15.6794,141.59,141.48,16.62660116]
[1718384341051,6.4126,141.6,141.48,16.62660116]
[1718384341279,7.8407,141.57,141.48,16.62660116]
[1718384341493,26.1348,141.58,141.49,0.34]
[1718384341652,5.2269,141.58,141.49,0.68]
[1718384341848,7.8407,141.57,141.49,0.68]
[1718384342160,2.6137,141.56,141.49,0.68]
[1718384342465,23.5218,141.57,141.48,16.62660116]
[1718384342466,23.5228,141.57,141.48,16.62660116]
[1718384342670,6.4126,141.6,141.48,16.62660116]
[1718384342864,2.6141,141.54,141.48,16.62660116]
[1718384343051,2.6143,141.53,141.48,10.9514778]
[1718384343456,26.1412,141.54,141.48,10.9514778]
[1718384343887,26.1412,141.54,141.49,0.34]
[1718384344080,6.4126,141.6,141.49,0.34]
[1718384344760,2.6141,141.54,141.49,0.34]
[1718384345093,2.614,141.55,141.49,0.34]
[1718384345279,7.8419,141.55,141.49,0.34]
[1718384345852,6.4126,141.6,141.5,0.17]
[1718384346057,38.0092,141.6,141.5,0.34]
[1718384346365,7.8394,141.59,141.52,0.17]
[1718384346572,2.6134,141.58,141.52,0.68]
[1718384346806,7.8401,141.58,141.52,0.68]
[1718384347046,2.6135,141.57,141.52,0.34]
[1718384347206,7.8401,141.58,141.53,0.34]
[1718384347510,23.5189,141.59,141.53,0.34]
[1718384347715,30.17,141.6,141.48,10.9514778]
[1718384347899,15.9371,141.62,141.48,32.1314778]
[1718384348217,2.6135,141.57,141.48,32.1314778]
[1718384348379,7.8403,141.58,141.48,32.1314778]
[1718384348580,15.9371,141.62,141.5,121.18]
[1718384348777,5.2259,141.61,141.5,121.18]
[1718384349015,7.8368,141.64,141.54,100.0]
[1718384349217,15.6737,141.64,141.55,0.68]
[1718384349396,7.837,141.64,141.55,0.68]
[1718384349703,23.5122,141.63,141.55,0.68]
[1718384350008,7.838,141.62,141.55,0.68]
[1718384350326,16.102,141.66,141.55,0.68]
[1718384350533,32.7827,141.62,141.55,0.68]
[1718384350818,32.7826,141.62,141.55,0.68]
[1718384350982,2.6128,141.61,141.55,0.68]
[1718384351312,2.613,141.6,141.55,0.68]
[1718384351498,26.1283,141.61,141.55,0.68]
[1718384351697,38.0082,141.62,141.55,0.68]
[1718384351904,15.6769,141.61,141.55,0.68]
[1718384352215,15.6769,141.61,141.47,21.26184012]
[1718384352216,7.8409,141.57,141.47,5.79736486]
[1718384352390,26.1343,141.58,141.47,5.79736486]
[1718384352594,116.102,141.66,141.48,132.1314778]
[1718384352792,7.8391,141.6,141.48,132.1314778]
[1718384352990,15.6781,141.6,141.48,132.1314778]
[1718384353362,2.6131,141.6,141.51,0.17]
[1718384353498,16.102,141.66,141.51,0.68]
[1718384353836,16.102,141.66,141.55,0.17]
[1718384353837,40.6195,141.64,141.55,0.17]
[1718384354036,30.17,141.64,141.55,0.68]
[1718384354203,38.0068,141.64,141.55,0.68]
[1718384354426,15.6747,141.63,141.55,0.68]
[1718384354804,38.007,141.64,141.55,0.68]
[1718384354990,40.6191,141.64,141.55,0.68]
[1718384355204,38.0069,141.64,141.55,0.68]
[1718384355494,35.3946,141.64,141.55,0.68]
[1718384355617,48.4561,141.64,141.55,0.68]
[1718384355911,5.2254,141.62,141.55,0.68]
[1718384356217,23.5123,141.63,141.55,0.68]
[1718384356392,30.17,141.64,141.55,0.68]
[1718384356393,2.6123,141.64,141.55,0.68]
[1718384356713,2.6126,141.62,141.55,0.68]
[1718384356904,7.8374,141.63,141.55,0.68]
[1718384357300,2.6125,141.63,141.55,0.68]
[1718384357522,2.6129,141.61,141.55,0.68]
[1718384357791,2.613,141.6,141.55,0.68]
[1718384358008,15.6758,141.62,141.55,0.68]
[1718384358220,2.6128,141.61,141.52,100.0]
[1718384358425,7.8385,141.61,141.52,100.0]
[1718384358751,2.6129,141.61,141.52,100.0]
[1718384358917,15.6769,141.61,141.52,100.0]
[1718384359098,5.226,141.6,141.52,100.0]
[1718384359313,2.6128,141.61,141.56,2.6136]
[1718384359510,23.5153,141.61,141.55,20.9103]
[1718384359689,7.8386,141.61,141.56,0.34]
[1718384360086,2.6129,141.61,141.56,8.1811]
[1718384360393,2.6128,141.61,141.56,2.9537]
[1718384360911,26.1271,141.62,141.56,16.0222]
[1718384361298,7.8384,141.61,141.56,2.9537]
[1718384361606,16.102,141.66,141.59,5.2262]
[1718384361861,5.2242,141.65,141.6,0.17]
[1718384362002,5.2242,141.65,141.59,5.2262]
[1718384362529,7.8375,141.63,141.58,2.7832]
[1718384362825,23.5138,141.62,141.57,0.17]
[1718384363000,16.102,141.66,141.57,0.17]
[1718384363001,23.5156,141.61,141.57,0.17]
[1718384363201,23.5142,141.62,141.56,5.5672]
[1718384363400,10.4501,141.63,141.56,18.6358]
[1718384363630,2.6127,141.62,141.57,2.6134]
[1718384363799,2.6127,141.62,141.58,0.17]
[1718384364000,16.102,141.66,141.56,8.1808]
[1718384364197,2.6128,141.61,141.56,2.9535]
[1718384364403,16.102,141.66,141.56,0.34]
[1718384364921,2.6131,141.59,141.56,0.34]
[1718384365127,15.6782,141.6,141.55,2.6138]
[1718384365305,26.1301,141.6,141.55,2.6139]
[1718384365503,26.1301,141.6,141.54,23.5264]
[1718384365727,26.1301,141.6,141.55,2.6138]
[1718384365909,15.6782,141.6,141.55,2.6138]
[1718384366116,26.1288,141.61,141.55,13.0694]
[1718384366296,2.613,141.6,141.55,2.6138]
[1718384366497,7.8389,141.6,141.56,0.34]
[1718384367110,2.613,141.6,141.56,0.34]
[1718384367325,26.129,141.61,141.56,0.34]
[1718384367507,2.613,141.6,141.56,0.34]
[1718384367900,7.839,141.6,141.56,0.34]
[1718384368108,2.613,141.6,141.56,0.34]
[1718384368316,2.6129,141.61,141.56,8.1808]
[1718384368522,26.1265,141.62,141.56,21.2494]
[1718384368806,23.5153,141.61,141.56,0.34]
[1718384369006,2.6122,141.64,141.59,2.613]
[1718384369223,16.102,141.66,141.57,2.6135]
[1718384369224,7.8379,141.62,141.57,2.6135]
[1718384369428,2.6127,141.62,141.58,0.34]
[1718384369611,7.8379,141.62,141.57,7.8402]
[1718384369914,15.6759,141.62,141.58,0.34]
[1718384370119,26.125,141.63,141.57,26.1351]
[1718384370347,2.6126,141.63,141.58,8.1798]
[1718384370533,7.8374,141.63,141.58,2.9532]
[1718384370753,26.1234,141.64,141.59,2.6131]
[1718384370960,2.6124,141.63,141.58,26.4731]
[1718384371119,18.2864,141.64,141.58,5.5667]
[1718384371362,2.6124,141.63,141.58,26.4726]
[1718384371531,2.6124,141.63,141.58,16.0197]
[1718384371731,2.6124,141.63,141.59,2.6131]
[1718384371939,2.6124,141.63,141.6,0.17]
[1718384372159,20.8984,141.64,141.6,0.17]
[1718384372404,2.6124,141.63,141.6,0.17]
[1718384372743,26.123,141.64,141.6,0.17]
[1718384372942,23.5106,141.64,141.6,0.17]
[1718384373133,2.6124,141.63,141.6,0.17]
[1718384373544,16.102,141.66,141.61,13.0637]
[1718384373545,7.8358,141.66,141.61,13.0637]
[1718384373841,15.6714,141.66,141.61,15.6763]
[1718384374047,23.5071,141.66,141.61,26.127]
[1718384374217,7.8357,141.66,141.62,2.6126]
[1718384374417,7.8357,141.66,141.64,10.1]
[1718384374749,26.1176,141.67,141.64,10.1]
[1718384374923,2.6117,141.67,141.64,10.1]
[1718384375325,23.5043,141.68,141.64,10.1]
[1718384375644,2.6115,141.68,141.64,12.7121]
[1718384375849,2.6112,141.7,141.66,2.6118]
[1718384376057,26.1099,141.71,141.67,2.6116]
[1718384376261,2.6113,141.7,141.66,15.6709]
[1718384376558,2.6111,141.7,141.66,26.1183]
[1718384376728,7.8334,141.7,141.66,7.8353]
[1718384376926,2.6113,141.69,141.65,26.6293]
[1718384377119,7.8339,141.69,141.66,0.34]
[1718384377326,2.6113,141.69,141.66,0.34]
[1718384377522,7.834,141.69,141.66,0.34]
[1718384377940,15.668,141.69,141.66,0.34]
[1718384378153,18.2773,141.71,141.66,8.1756]
[1718384378334,2.6112,141.7,141.67,2.6115]
[1718384378657,26.1104,141.71,141.67,7.8348]
[1718384378956,26.1103,141.71,141.67,7.8348]
[1718384379181,10.4431,141.72,141.67,18.2812]
[1718384379340,26.1065,141.73,141.67,7.8347]
[1718384379519,15.6096,141.75,141.68,0.17]
[1718384379728,15.6096,141.75,141.66,2.7817]
[1718384379729,13.0559,141.7,141.66,2.7817]
[1718384379926,26.1119,141.7,141.66,8.0054]
[1718384380239,7.834,141.69,141.66,2.7818]
[1718384380439,2.6113,141.69,141.66,2.7818]
[1718384380649,2.6113,141.69,141.66,8.0055]
[1718384380848,2.6113,141.69,141.66,2.7818]
[1718384381049,26.1121,141.7,141.66,8.0055]
[1718384381259,7.834,141.69,141.66,2.6118]
[1718384381550,2.6113,141.69,141.66,7.8355]
[1718384381769,7.8339,141.69,141.65,26.2897]
[1718384381930,26.1132,141.69,141.65,8.0058]
[1718384382123,7.8339,141.69,141.65,26.29]
[1718384382735,7.8345,141.68,141.65,0.17]
[1718384382973,115.6096,141.75,141.64,10.1]
[1718384382974,10.4482,141.65,141.64,10.1]
[1718384383265,26.1205,141.65,141.64,10.1]
[1718384383768,15.6723,141.65,141.64,10.1]
[1718384384121,26.1205,141.65,141.64,10.1]
[1718384384331,15.6723,141.65,141.64,10.1]
[1718384384673,7.8361,141.65,141.64,10.1]
[1718384385175,2.612,141.65,141.64,10.1]
[1718384385341,18.2839,141.66,141.64,10.1]
[1718384385342,26.1197,141.66,141.64,10.1]
[1718384385540,2.612,141.65,141.64,10.1]
[1718384385757,7.8361,141.65,141.64,10.1]
[1718384386154,2.612,141.65,141.64,10.1]
[1718384386351,7.8352,141.67,141.64,10.1]
[1718384386549,2.6119,141.66,141.64,10.1]
[1718384386949,26.1173,141.67,141.64,10.1]
[1718384387251,2.6117,141.67,141.64,10.1]
[1718384387446,7.8351,141.67,141.64,10.1]
[1718384387837,15.6702,141.67,141.64,10.1]
[1718384388038,26.117,141.67,141.64,10.1]
[1718384388268,7.8356,141.66,141.64,10.1]
[1718384388466,2.612,141.65,141.64,10.1]
[1718384388667,7.8361,141.65,141.64,10.1]
[1718384388847,7.8356,141.66,141.64,10.1]
[1718384389170,2.612,141.65,141.64,10.1]
[1718384389541,23.5071,141.66,141.64,10.1]
[1718384389770,2.612,141.65,141.64,10.1]
[1718384389990,26.1191,141.66,141.64,10.1]
[1718384390140,2.612,141.65,141.64,10.1]
[1718384391101,26.1191,141.66,141.64,10.1]
[1718384391411,2.612,141.65,141.64,10.1]
[1718384391970,26.1191,141.66,141.64,10.1]
[1718384392653,2.612,141.65,141.64,10.1]
[1718384392840,26.1191,141.66,141.64,10.1]
[1718384393048,2.612,141.65,141.64,10.1]
[1718384393235,7.8361,141.65,141.64,10.1]
[1718384393512,2.612,141.65,141.64,10.1]
[1718384393658,2.612,141.66,141.64,10.1]
[1718384393849,15.8605,141.69,141.66,5.2235]
[1718384394053,18.4718,141.69,141.66,7.8354]
[1718384394243,23.6945,141.69,141.66,7.8354]
[1718384394456,31.5285,141.69,141.66,2.6117]
[1718384394663,2.6115,141.68,141.65,26.1192]
[1718384394850,7.8345,141.68,141.65,2.6119]
[1718384395053,26.1157,141.68,141.65,2.612]
[1718384395344,7.8346,141.68,141.65,7.836]
[1718384395698,15.6691,141.68,141.65,2.612]
[1718384395871,2.6117,141.67,141.64,36.2212]
[1718384396556,7.8351,141.67,141.64,17.9363]
[1718384396747,2.6117,141.67,141.64,17.9363]
[1718384397062,7.8351,141.67,141.64,17.9365]
[1718384397267,2.6117,141.67,141.64,36.2215]
[1718384397944,26.1152,141.68,141.65,2.612]
[1718384398148,26.1152,141.68,141.64,33.6095]
[1718384398354,7.8351,141.67,141.64,17.9365]
[1718384398871,7.8351,141.67,141.64,12.7121]
[1718384399550,7.8351,141.67,141.64,10.1]
[1718384399551,2.6118,141.66,141.64,10.1]
[1718384399991,5.2241,141.65,141.64,10.1]
[1718384400254,22.3217,141.65,141.51,1.5249]
[1718384400446,7.8397,141.59,141.55,23.5243]
[1718384400667,59.79245359,141.65,141.51,1.5249]
[1718384400668,2.6139,141.55,141.51,23.5311]
[1718384400967,2.6139,141.55,141.44,28.260363]
[1718384400968,7.8458,141.48,141.44,28.260363]
[1718384401206,0.17,141.51,141.39,5.2336]
[1718384401455,0.17,141.51,141.31,1.5249]
[1718384401456,2.6165,141.41,141.37,2.6172]
[1718384401572,0.17,141.54,141.36,100.0]
[1718384401772,5.2313,141.46,141.41,5.2328]
[1718384401970,100.17,141.53,141.36,5.73435508]
[1718384402258,0.17,141.52,141.34,121.18]
[1718384402454,0.34,141.53,141.41,5.2328]
[1718384402737,25.7334,141.55,141.33,6.52495621]
[1718384402738,15.7334,141.55,141.4,100.0]
[1718384402944,2.6142,141.54,141.5,2.6147]
[1718384403146,2.6137,141.56,141.52,2.6144]
[1718384403390,15.6804,141.58,141.53,2.6141]
[1718384403575,10.4533,141.59,141.54,0.17]
[1718384403576,18.2929,141.59,141.54,0.17]
[1718384403867,23.5143,141.62,141.57,2.6135]
[1718384404063,26.1248,141.63,141.58,7.84]
[1718384404267,23.57015359,141.65,141.49,21.18]
[1718384404468,30.17,141.61,141.5,0.51]
[1718384404644,7.843,141.53,141.48,7.8453]